Cogmind - Beta 13 @@@ ROGUE MODE // 2024.06.16 @ 21:35:38 Player: block30 Result: Destroyed by as-85831 with Assembled Heavy Rifle Performance ------------- Evolutions (0) 0 Regions Visited (2) 400 Robots Destroyed (10) 50 Value Destroyed (294) 294 Prototype IDs (0) 0 Alien Tech Used (0) 0 Bonus (0) 0 TOTAL SCORE: 744 Bonus ------- None Cogmind --------- Core Integrity 0/250 Matter 288/300 Energy 160/160 System Corruption 0% Temperature Cool (0) Movement Core (250) Ox4 Location -10/Mines Parts ------- > --- POWER (1) -------- Light Nuclear Core > --- PROPULSION (2) --- (None) > --- UTILITY (2) ------ Small Storage Unit Improved Terrain Scanner > --- WEAPON (2) ------- Assault Rifle > --- INVENTORY (8) ---- Ion Engine Light Ion Engine Aluminum Leg Heat Sink Transport Network Coupler Small Laser Assault Rifle Hammer Peak State ------------ > --- POWER ------------ Light Nuclear Core > --- PROPULSION ------- Aluminum Leg Aluminum Leg > --- UTILITY ---------- Small Storage Unit Medium Armor Plating > --- WEAPON ----------- Medium Laser Small Laser > --- INVENTORY -------- Ion Engine [Rating: 10] Favorites ----------- Power Light Nuclear Core Engine Ion Engine Power Core Light Nuclear Core Propulsion Aluminum Leg Leg Aluminum Leg Utility Small Storage Unit Device Improved Terrain Scanner Storage Small Storage Unit Protection Medium Armor Plating Weapon Medium Laser Energy Gun Medium Laser Ballistic Gun Assault Rifle Impact Weapon Hammer Build | -11 -10 -10 ------- Run | Yrd Mat Min Slots Evolved . | . . . Power . | . . . Propulsion . | . . . Utility . | . . . Weapon . | . . . Parts Attached 13 | 6 5 2 Power 2 | 1 1 . Engine 1 | 1 . . Core 1 | . 1 . Reactor . | . . . Propulsion 3 | 2 1 . Treads . | . . . Leg 3 | 2 1 . Wheel . | . . . Hover . | . . . Flight . | . . . Utility 4 | 1 2 1 Device 1 | . . 1 Storage 1 | 1 . . Processor . | . . . Hackware . | . . . Protection 2 | . 2 . Artifact . | . . . Weapon 4 | 2 1 1 Energy Gun 2 | 2 . . Energy Cannon . | . . . Ballistic Gun 1 | . . 1 Ballistic Cannon . | . . . Launcher . | . . . Special Weapon . | . . . Impact Weapon 1 | . 1 . Slashing Weapon . | . . . Piercing Weapon . | . . . Special Melee Weapon . | . . . Unidentified Prototypes . | . . . Parts Lost 5 | . 3 2 Power . | . . . Propulsion 2 | . 2 . Utility 2 | . 1 1 Weapon 1 | . . 1 Highest Loss Streak 2 | . 2 2 To Critical Strikes . | . . . Average Slot Usage (%) 81 | . 93 53 Engine 1 | . 2 . Core 12 | . 11 14 Leg 17 | . 24 . Storage 14 | . 14 14 Protection 9 | . 11 4 Energy Gun 17 | . 23 4 Ballistic Gun 4 | . . 14 Impact Weapon 3 | . 4 . Naked Turns . | . . . Heaviest Build 21 | 13 21 17 Greatest Support 20 | 20 20 3 Greatest Overweight (x) 5 | . 5 5 Average Overweight (x) 1 | . . 3 Largest Inventory Capacity 8 | 8 8 8 Average Capacity 7 | 7 8 8 Most Carried 8 | 5 8 8 Average Carried 4 | . 2 7 Final Capacity 8 | 8 8 8 Final Carried 8 | . 7 8 Class Distribution -------------------- 100% | Mutant Dominant Class ---------------- Mutant | -10/Materials Mutant | -10/Mines Resources | -11 -10 -10 ----------- Run | Yrd Mat Min Matter Collected 382 | 213 87 82 Remotely . | . . . Salvage Created 408 | . 289 119 Parts 9 | . 7 2 Haulers Intercepted . | . . . Recyclers Shooed . | . . . Parts Field Recycled . | . . . Retrieved Matter . | . . . Parts Self-Destructed . | . . . Prevented . | . . . Kills | -11 -10 -10 ------- Run | Yrd Mat Min Combat Hostiles Destroyed 15 | . 7 8 Melee 1 | . 1 . Guns 11 | . 3 8 Classes Destroyed 3 | . 1 2 Swarmer 3 | . . 3 Grunt 7 | . 7 . Assembled 5 | . . 5 Best Kill Streak 3 | . 2 3 Combat Bots Only 3 | . 2 3 Max Kills in Single Turn 1 | . 1 1 Gunslinging . | . . . Exploded . | . . . Melee 1 | . 1 . Uniques/NPCs Destroyed . | . . . Combat | -11 -10 -10 -------- Run | Yrd Mat Min Hostile Shots Fired 109 | . 66 43 Missed 30 | . 14 16 Damage Taken 1002 | . 608 394 Core 253 | . 118 135 Absorbed by Shields . | . . . Core Remaining (%) 100 | 100 . . Volleys Fired 38 | . 15 23 Largest 2 | . 2 2 Hottest 90 | . 90 70 Shots Fired 55 | . 24 31 Gun 55 | . 24 31 Cannon . | . . . Launcher . | . . . Special . | . . . Kinetic 23 | . . 23 Thermal 32 | . 24 8 Explosive . | . . . Electromagnetic . | . . . Robot Hit Streak 15 | . 8 15 Robot Miss Streak 2 | . 1 2 Penetration Max . | . . . Secondary Targets 2 | . 1 1 Max Gunslinging Chain 1 | . 1 1 Shots Hit Robots 54 | . 34 20 Core Hits 22 | . 9 13 Critical Kills . | . . . Critical Parts Destroyed 3 | . 3 . Critical Strikes 3 | . 3 . Smash 3 | . 3 . Melee Attacks 26 | . 26 . Impact 26 | . 26 . Slashing . | . . . Piercing . | . . . Sneak Attacks . | . . . Combat Hostiles . | . . . Follow-up Attacks . | . . . Damage Inflicted 856 | . 610 246 Guns 472 | . 226 246 Cannons . | . . . Explosions . | . . . Melee 384 | . 384 . Ramming . | . . . Kinetic 171 | . . 171 Thermal 301 | . 226 75 Explosive . | . . . Electromagnetic . | . . . Impact 384 | . 384 . Slashing . | . . . Piercing . | . . . Highest Corruption . | . . . Average Corruption . | . . . Corruption Purged . | . . . Corruption Blocked . | . . . Overload Shots . | . . . Overflow Damage 88 | . 88 . Projectiles . | . . . Explosions . | . . . Melee 88 | . 88 . Knockbacks 2 | . 2 . Impact 2 | . 2 . Kinetic . | . . . Secondary . | . . . Self-Inflicted Damage . | . . . Shots . | . . . Rammed . | . . . Targets Rammed . | . . . Kicked . | . . . Crushed . | . . . Highest Temperature 396 | . 396 96 Average Temperature 122 | . 166 45 Received Heat Transfer 357 | . 357 . Effects 4 | . 4 . Shutdowns 1 | . 1 . Interference 2 | . 2 . Short Circuit 1 | . 1 . Siege Activations . | . . . Robots Corrupted . | . . . Combat Hostiles . | . . . Parts Fried 5 | . 5 . Impact Corruptions 5 | . 5 . Robots Melted . | . . . Combat Hostiles . | . . . Parts Melted 2 | . 1 1 Heat Transferred 793 | . 571 222 Parts Sabotaged . | . . . Parts Stolen . | . . . Parts Stripped . | . . . Power Chain Reactions . | . . . Alert | -11 -10 -10 ------- Run | Yrd Mat Min Peak Influence 95 | . 95 85 Initial . | . . . Average 49 | . 44 68 Maximum Alert Level . | . . . Low Security (%) 100 | 100 100 100 Level 1 . | . . . Level 2 . | . . . Level 3 . | . . . Level 4 . | . . . Level 5 . | . . . High Security . | . . . Max Security . | . . . Squads Dispatched 3 | . 3 . Investigation 1 | . 1 . Extermination . | . . . Reinforcement 2 | . 2 . Assault . | . . . Garrison . | . . . Intercept . | . . . Searches Triggered . | . . . Construction Impeded . | . . . Haulers Reinforced . | . . . Active Scanning Responses . | . . . Cargo Convoy Interrupts . | . . . Stealth | -11 -10 -10 --------- Run | Yrd Mat Min Distress Signals . | . . . Communications Jammed . | . . . Distress Signals . | . . . Times Spotted 19 | . 10 9 Peak Tracking Total 3 | . 3 2 Tactical Retreats 1 | . 1 . Traps | -11 -10 -10 ------- Run | Yrd Mat Min Traps Triggered 1 | . 1 . Indirectly . | . . . Trap Hack Attempts . | . . . Triggered . | . . . Disarmed . | . . . Reprogrammed . | . . . Reused . | . . . Traps Extracted . | . . . Installed . | . . . Triggered 1 | . . 1 Machines | -11 -10 -10 ---------- Run | Yrd Mat Min Machines Disabled . | . . . Max in Single Turn . | . . . Machines Repaired . | . . . Machines Dismantled . | . . . Machines Sabotaged . | . . . Overloaded Fab Kills . | . . . Hacking | -11 -10 -10 --------- Run | Yrd Mat Min Machines Accessed 1 | . . 1 Terminals 1 | . . 1 Fabricators . | . . . Repair Stations . | . . . Recycling Units . | . . . Scanalyzers . | . . . Garrison Access . | . . . Total Hacks 1 | . . 1 Successful 1 | . . 1 Failed . | . . . Catastrophic . | . . . Database Lockouts . | . . . Manual . | . . . Terminals 1 | . . 1 Fabricators . | . . . Repair Stations . | . . . Recycling Units . | . . . Scanalyzers . | . . . Garrison Access . | . . . Terminal Hacks 1 | . . 1 Zone Layout 1 | . . 1 Fabricator Hacks . | . . . Repair Station Hacks . | . . . Recycling Unit Hacks . | . . . Scanalyzer . | . . . Garrison Access Hacks . | . . . Unauthorized Hacks . | . . . Terminals . | . . . Fabricators . | . . . Repair Stations . | . . . Recycling Units . | . . . Scanalyzers . | . . . Garrison Access . | . . . Data Cores Recovered . | . . . Used . | . . . Hacking Detections 1 | . . 1 Full Trace Events . | . . . Feedback Events . | . . . Feedback Blocked . | . . . Robot Schematics Acquired . | . . . Robots Built . | . . . Authchips . | . . . Time . | . . . Total Robot Build Rating . | . . . Part Schematics Acquired . | . . . Parts Built . | . . . Authchips . | . . . Time . | . . . Total Part Build Rating . | . . . Parts Repaired . | . . . Time . | . . . Parts Recycled . | . . . Recycled Matter . | . . . Retrieved Matter . | . . . Retrieved Components . | . . . Parts Scanalyzed . | . . . Part Schematics Acquired . | . . . Parts Damaged . | . . . Bothacking | -11 -10 -10 ------------ Run | Yrd Mat Min Used RIF Installer . | . . . Robots Hacked . | . . . Non-combat . | . . . Combat . | . . . Robot Hacks Applied . | . . . Relay Couplers Released . | . . . Fabnet Peak Effective % . | . . . Robots Rewired . | . . . Allies Hacked . | . . . Hacks Repelled . | . . . Allies | -11 -10 -10 -------- Run | Yrd Mat Min Total Allies . | . . . Largest Group . | . . . Highest-Rated Group . | . . . Highest-Rated Ally . | . . . Total Orders . | . . . Ally Attacks . | . . . Total Damage . | . . . Kills . | . . . Allies Corrupted . | . . . Allies Melted . | . . . Intel | -11 -10 -10 ------- Run | Yrd Mat Min Robot Analysis Total . | . . . Derelict Logs Recovered 1 | . . 1 Drone Launches . | . . . Drone Recoveries . | . . . Exploration | -11 -10 -10 ------------- Run | Yrd Mat Min Turns Passed 1246 | 51 839 356 Spaces Moved 493 | 39 324 130 Core 173 | 9 34 130 Treads . | . . . Legs 320 | 30 290 . Wheels . | . . . Hover . | . . . Flight . | . . . Fastest Speed 50 | 50 120 200 Average Speed 171 | 103 156 229 Slowest Speed 300 | 120 300 300 Overloaded Moves . | . . . Propulsion Burnouts . | . . . Robots Hopped . | . . . Cave-ins Triggered . | . . . Exploration Rate (%) 29 | 4 43 41 Regions Visited 2 Branch Regions 1 Pre-discovered Areas . | . . . Known Exits Taken . | . . . Unknown Exits Taken 2 | 1 1 . Scrap Searched . | . . . Spaces Dug . | . . . Terrain Destroyed . | . . . Melee . | . . . Projectile . | . . . AOE . | . . . Terrain Rammed . | . . . Walls Destroyed . | . . . Machines Disabled . | . . . Actions | -11 -10 -10 --------- Run | Yrd Mat Min Total 792 | 49 587 156 Wait 207 | . 207 . Move 491 | 38 323 130 Hop . | . . . Pick Up 16 | 5 10 1 Fast Attach 2 | 1 . 1 Attach 7 | 5 2 . Detach . | . . . Swap 4 | . 3 1 Drop 1 | . 1 . Fire 38 | . 15 23 Melee 26 | . 26 . Ram . | . . . Kick . | . . . Crush . | . . . Escape Stasis . | . . . Rewire . | . . . Trap . | . . . Miscellaneous . | . . . Route ------- -11/Scrapyard -10/Materials -10/Mines History --------- Turn | Location | Event 6 | -11/Scrapyard | Discovered new exit (range 16) 52 | -11/Scrapyard | Entered Materials 314 | -10/Materials | Build established: Mutant 852 | -10/Materials | Discovered new exit (range 14) 891 | -10/Materials | Entered Mines 892 | -10/Mines | Assembled infested the area 956 | -10/Mines | Learned 2 Materials zone layouts 962 | -10/Mines | Core integrity fell below 50% 1047 | -10/Mines | Core integrity fell below 20% 1247 | -10/Mines | Destroyed by as-85831 with Assembled Heavy Rifle Last Messages --------------- Data stored: Materials zone layouts (x2). 00962_ as-58504 destroyed. 00965_ Acquired 3 matter. 00978_ Knocked back. 00984_ Acquired 3 matter. 00992_ as-60355 destroyed. 00992_ Switching to secondary target: as-65688. 00993_ Acquired 3 matter. 00994_ Med. Laser destroyed. 00996_ Acquired 3 matter. 01003_ Lgt. Armor Plating destroyed. 01005_ as-65688 destroyed. 01007_ Acquired 10 matter. 01037_ as-77944 destroyed. 01049_ as-54647 destroyed. 01051_ Acquired 11 matter. 01055_ Acquired 4 matter. 01173_ Acquired Lgt. Ion Engine. 01176_ Acquired Imp. Terrain Scanner. 01177_ Acquired 10 matter. Map ----- +----------------------------------------------------+ | | | | | | | | | | | | | | | | | | | | | | | | | | | | | | | | | | | ??????????????????????????#?????????????#????????? | | ???????????????????????#?????????????????????????? | | ???????###?????#???????????????#?#??#?#??????????? | | ?????## ##????#??????????????????????#??????????? | | ?????# #??????????????????????#??? ####???????? | | ?????# #?????????????########### ##??????? | | ##??## #???#??????????# #??????? | | ### ##??????????????# a #??????? | | #???????###?????#@### #???????? | | ##??????# ##????# #?## ##???????? | | ##?????#=%####?# #?### ##????????? | | ####### ! % ### #???#" #?????????? | | ## ! = ## #### ##????????? | | ### ## ##?????????? | | ### #### ## ### ###?????????? | | ## #??# % #?# ##???????????? | | #?## #??## #####?## #????????????? | | #???## ####???#####??????#*% ##????????????? | | ##?????# ##????#?????####### = ##??#??????????? | | ?????### #####?????## % #??????????????? | | ????## ##????# #??????????????? | | ????# ###??# ##%# ##??????????????? | | ????# #??# ## ####???????????????? | | ????# ## #??## ### #??????????????????? | | ????# ##### #???# #?# #??????????????????? | | ????# ###?### #??## #?# #???#??????????????? | | ????# ##??## #?## #?# #########??????????? | | ????# ##### ### #?# ## #??????????? | | ????# ## ##?# [ ##?????????? | | ????# ## ##?#### % T#?????????? | | ???# #### # ## ##???#=%""" ##?????????? | | ??? #???# ## % #???# """ #??????????? | | ?? #????# ## #???# """ #??????????? | +----------------------------------------------------+ Best States ------------- Heat Dissipation 25 Energy Generation 14 Energy Capacity 250 Matter Stores 300 Matter Capacity 300 Sight Range 16 Terrain Scan Range 16 Terrain Scan Density 10 Armor Coverage 225 Evasion (%) 55 Item Schematics ----------------- None Robot Schematics ------------------ None Fabricated ------------ Nothing Alien Tech Used ----------------- None Achievements -------------- None Challenges ------------ None Game ------ Seed MinesnifferArmoredCloak Manual? 0 Play Time 00:10:37 Cumulative 8.3 hours Start 2024.06.16 @ 21:27:11 End 2024.06.16 @ 21:35:38 Sessions 1 Manual Loads 0 Difficulty Rogue Special Mode None Game No. 29 Rogue 27 Adventurer 1 Explorer 1 Win Type - Total 0 Types 0/0/0/0/0/0/0/0/0 Lore% 15 Gallery% 9 Achievement% 16 Wizard Run 0 Options --------- Layout 1 ASCII 0 Keyboard 0 Movement Mouse Keybinds 0 Fullscreen 0 Font 20/SmallcapsGlow Map View 50x35 Zoom Use 0% Tactical HUD 1 Map Filters NONE Filters NONE Steam 1 RUN: 7dcd44dd-f2de-496a-9820-d30a9ba87a3b